[Event "Reykjavik Open 2022"]
[Site "Reykjavik"]
[Date "2022.04.09"]
[Round "5.24"]
[White "Grieve, Harry"]
[Black "Ingvason, Johann"]
[Result "1-0"]
[ECO "C10"]
[WhiteElo "2384"]
[BlackElo "2183"]
[Annotator "NA RC"]
[PlyCount "69"]
[EventDate "2022.04.06"]
[EventCountry "ISL"]
[SourceTitle "playchess.com"]
[Source "ChessBase"]
[SourceQuality "1"]
[TimeControl "40/5400+30:1800+30"]

1. e4 {[%emt 0:00:03]} e6 {[%emt 0:03:42]} 2. d4 {[%emt 0:00:20]} d5 {[%emt 0:00:08]} 3. Nd2 {[%emt 0:00:30]} dxe4 {[%emt 0:00:04]} 4. Nxe4 {[%emt 0:00:07]} Be7 {[%emt 0:00:04]} 5. Nf3 {[%emt 0:08:46]} Nd7 {[%emt 0:01:06]} 6. Bf4 {[%emt 0:04:41]} Ngf6 {[%emt 0:00:13]} 7. Nxf6+ {[%emt 0:01:59]} Nxf6 {[%emt 0:01:30]} 8. g3 {[%emt 0:02:34]} b6 {[%emt 0:01:53]} 9. Bb5+ {[%emt 0:00:27]} Bd7 {[%emt 0:00:10]} 10. a4 {[%emt 0:00:13]} O-O {[%emt 0:08:00]} 11. O-O {[%emt 0:01:42]} c5 {[%emt 0:02:18]} 12. Ne5 {[%emt 0:08:43]} Bxb5 {[%emt 0:05:29]} 13. axb5 {[%emt 0:00:34]} Nd5 {[%emt 0:02:20]} 14. Nc6 {[%emt 0:01:20]} Qe8 {[%emt 0:01:11]} 15. dxc5 {[%emt 0:11:24]} Bxc5 {[%emt 0:07:36]} 16. Be5 {[%emt 0:02:41]} a5 {[%emt 0:02:27]} 17. Qg4 {[%emt 0:05:27]} f6 {[%emt 0:02:03]} 18. Bd4 {[%emt 0:00:05]} h5 {[%emt 0:24:26]} 19. Qe4 {[%emt 0:00:43]} f5 {[%emt 0:08:20]} 20. Qe5 {[%emt 0:02:53]} Bxd4 {[%emt 0:01:22]} 21. Qxd4 {[%emt 0:03:58]} f4 {[%emt 0:01:32]} 22. Rfe1 {[%emt 0:14:37]} fxg3 {[%emt 0:03:36]} 23. hxg3 {[%emt 0:01:23]} Qf7 {[%emt 0:00:34]} 24. c4 {[%emt 0:04:46]} Nf6 {[%emt 0:02:06]} 25. Qxb6 {[%emt 0:00:45]} h4 {[%emt 0:06:56]} 26. Ne5 {[%emt 0:00:09]} Qh5 {[%emt 0:00:06]} 27. Qxe6+ {[%emt 0:01:36]} Kh7 {[%emt 0:00:56]} 28. Qh3 {[%emt 0:03:54]} hxg3 {[%emt 0:03:24]} 29. Qxh5+ {[%emt 0:00:21]} Nxh5 {[%emt 0:00:02]} 30. fxg3 {[%emt 0:01:09]} Nxg3 {[%emt 0:00:01]} 31. Ra3 {[%emt 0:02:26]} Nh5 {[%emt 0:00:48]} 32. b6 {[%emt 0:02:51]} Rf5 {[%emt 0:00:41]} 33. Rf3 {[%emt 0:01:57]} Rg5+ {[%emt 0:00:31]} 34. Kf2 {[%emt 0:00:33]} Re8 {[%emt 0:01:26]} 35. Nf7 {[%emt 0:01:03]} 1-0

[Event "Reykjavik Open 2022"]
[Site "Reykjavik"]
[Date "2022.04.09"]
[Round "5.25"]
[White "Domalchuk-Jonasson, Aleksandr"]
[Black "Song, Julien"]
[Result "0-1"]
[ECO "E51"]
[WhiteElo "2162"]
[BlackElo "2352"]
[Annotator "TA"]
[PlyCount "98"]
[EventDate "2022.04.06"]
[EventCountry "ISL"]
[SourceTitle "playchess.com"]
[Source "ChessBase"]
[SourceQuality "1"]
[TimeControl "40/5400+30:1800+30"]

{[%evp 13,98,-8,2,16,6,-24,-14,-23,-16,-27,-21,-41,-37,-40,-44,-52,-35,-33,-4,-37,-23,-35,-23,-18,-31,-32,-24,-60,-60,-70,-65,-58,-68,-65,-64,-87,-74,-143,-135,-180,-173,-176,-170,-178,-186,-178,-176,-336,-278,-293,-287,-314,-289,-576,-560,-723,-704,-850,-745,-964,-941,-6095,-8059,-5795,-5128,-29974,-29975,-29974,-29976,-29973,-29976,-29986,-29987,-29987,-29988,-29991,-29992,-29993,-29994,-29994,-29985,-29985,-29983,-29985,-29986,-29986,-29986]} 1. d4 {[%emt 0:00:03]} Nf6 {[%emt 0:00:35]} 2. c4 {[%emt 0:00:25]} e6 {[%emt 0:00:34]} 3. Nc3 {[%emt 0:00:20]} Bb4 {[%emt 0:00:52]} 4. e3 {[%emt 0:01:13]} O-O {[%emt 0:00:55]} 5. Bd2 {[%emt 0:01:26]} d5 {[%emt 0:00:56]} 6. Nf3 {[%emt 0:01:19]} b6 {[%emt 0:00:54]} 7. cxd5 {[%emt 0:00:57]} exd5 {[%emt 0:00:17]} 8. Rc1 {[%emt 0:01:30] E51: Nimzo-Indian: Rubinstein: 4...0-0 5 Nf3 d5.} c5 {[%emt 0:01:08]} 9. Bd3 {[%emt 0:10:55] [#]} c4 $146 {[%emt 0:02:15]} ({Predecessor:} 9... Bg4 10. O-O Nc6 11. Qa4 Bxf3 12. Qxc6 Bg4 13. a3 Bxc3 14. Bxc3 c4 15. Bb1 Bd7 {0-1 (25) Strati,B (1734)-Apostolakaki,E (1617) Trikala 2020}) 10. Bb1 {[%emt 0:06:18] The position is equal.} Bg4 {[%emt 0:10:09]} 11. h3 {[%emt 0:15:13]} Bh5 {[%emt 0:04:47]} 12. g4 {[%emt 0:04:50]} Bg6 {[%emt 0:00:37]} 13. Bxg6 {[%emt 0:06:23]} fxg6 {[%emt 0:23:31]} 14. O-O {[%emt 0:14:31]} Bxc3 {[%emt 0:11:57]} 15. Bxc3 {[%emt 0:00:21]} Ne4 {[%emt 0:00:30]} 16. Bb4 {[%emt 0:10:03]} Rf6 {[%emt 0:03:20]} 17. Ne5 {[%emt 0:03:30]} Nc6 {[%emt 0:09:05]} 18. Nxc6 {[%emt 0:08:58]} Rxc6 {[%emt 0:00:24]} 19. f3 {[%emt 0:00:16]} Nf6 {[%emt 0:03:20]} 20. e4 {[%emt 0:00:53]} a5 {[%emt 0:04:48]} 21. Ba3 {[%emt 0:00:38]} b5 {[%emt 0:03:22] White must now prevent ...b4.} ({Reject} 21... dxe4 22. fxe4 b5 23. e5 $11) 22. Bc5 {[%emt 0:03:27]} dxe4 {[%emt 0:07:50]} 23. fxe4 {[%emt 0:00:18]} Nd7 {[%emt 0:00:02]} ({Don't take} 23... Nxe4 24. Rf8+ Qxf8 25. Bxf8 Rxf8 26. Qe2 $14) 24. Qf3 {[%emt 0:05:03] Black converts the advantage convincingly.} Nxc5 {[%emt 0:00:07]} 25. dxc5 {[%emt 0:00:17] [#]} ({Better is} 25. Qf7+ Kh8 26. dxc5) 25... Qd4+ $1 $17 {[%emt 0:01:02]} 26. Qf2 {[%emt 0:02:19]} Qxc5 {[%emt 0:01:43]} 27. Qxc5 {[%emt 0:01:26]} Rxc5 $19 {[%emt 0:00:02][%mdl 4096] Endgame KRR-KRR} 28. Rcd1 {[%emt 0:01:10] [#]} Rf8 $1 {[%emt 0:00:32]} 29. Rxf8+ {[%emt 0:00:21]} Kxf8 {[%emt 0:00:01] KR-KR} 30. Rd7 $2 {[%emt 0:00:32]} (30. Kf2 {keeps fighting.}) 30... b4 {[%emt 0:00:24]} 31. Kf2 {[%emt 0:00:17]} c3 {[%emt 0:01:18]} 32. bxc3 {[%emt 0:00:04]} Rxc3 {[%emt 0:00:16]} ({Not} 32... bxc3 $2 33. Rd1 $19) 33. Ke2 $2 {[%emt 0:00:58]} (33. h4) 33... Rxh3 {[%emt 0:01:33]} 34. e5 {[%emt 0:00:41]} h5 {[%emt 0:03:42][%cal Bh7h5,Bh5h4,Bh4h3][%mdl 32]} 35. g5 {[%emt 0:00:31]} Rg3 {[%emt 0:00:50]} 36. Ra7 {[%emt 0:00:27]} Ra3 {[%emt 0:01:50]} 37. e6 {[%emt 0:00:12]} h4 {[%emt 0:00:54] Strongly threatening ...h3.} 38. Rf7+ {[%emt 0:00:45]} Ke8 {[%emt 0:00:42]} 39. Rxg7 {[%emt 0:00:09]} h3 {[%emt 0:01:00] Black mates.} 40. Rxg6 {[%emt 0:00:00]} h2 {[%emt 0:00:00]} 41. Rh6 {[%emt 0:01:04]} b3 {[%emt 0:07:52]} 42. g6 {[%emt 0:09:40]} bxa2 {[%emt 0:03:49]} 43. g7 {[%emt 0:01:53]} Rg3 {[%emt 0:01:14]} 44. Rxh2 {[%emt 0:01:49]} a1=Q {[%emt 0:01:41]} 45. Rh8+ {[%emt 0:00:05]} Ke7 {[%emt 0:00:08]} 46. g8=Q {[%emt 0:00:04]} Rxg8 {[%emt 0:01:17]} 47. Rxg8 {[%emt 0:00:07]} Kxe6 {[%emt 0:00:46]} 48. Rg3 {[%emt 0:00:44]} Qb2+ {[%emt 0:00:51]} 49. Kd1 {[%emt 0:00:06]} a4 {[%emt 0:01:09] Weighted Error Value: White=0.72/Black=0.06 (flawless)} 0-1

[Event "Reykjavik Open 2022"]
[Site "Reykjavik"]
[Date "2022.04.09"]
[Round "5.26"]
[White "Decosse, Jean-Fabien"]
[Black "Dishman, Stephen"]
[Result "0-1"]
[ECO "D12"]
[WhiteElo "2156"]
[BlackElo "2332"]
[Annotator "TA"]
[PlyCount "103"]
[EventDate "2022.04.06"]
[EventCountry "ISL"]
[SourceTitle "playchess.com"]
[Source "ChessBase"]
[SourceQuality "1"]
[TimeControl "40/5400+30:1800+30"]

{[%evp 15,103,12,24,22,14,19,21,16,20,10,26,-8,14,-29,-18,-68,-64,-93,0,0,-2,-88,-41,-43,-48,-64,-43,-48,0,-150,-164,-147,-160,-167,-172,-184,-151,-189,-195,-157,-75,-191,-153,-247,0,-20,-33,-22,-24,-22,-37,-27,0,0,0,0,0,0,0,-16,-8,-112,-64,-433,-426,-863,-834,-922,-620,-620,-606,-1144,-1064,-1761,-1723,-1606,-1322,-29960,-29961,-29962,-29961,-29960,-12305,-29973,-29975,-29975,-29976,-29976,-29974,-29970]} 1. d4 {[%emt 0:01:03]} d5 {[%emt 0:00:30]} 2. c4 {[%emt 0:00:31]} c6 {[%emt 0:00:09]} 3. Nf3 {[%emt 0:00:54]} Nf6 {[%emt 0:00:09]} 4. e3 {[%emt 0:00:16]} Bf5 {[%emt 0:00:13]} 5. Nc3 {[%emt 0:00:16]} e6 {[%emt 0:00:12]} 6. Nh4 {[%emt 0:00:38]} Be4 {[%emt 0:00:08]} 7. f3 {[%emt 0:00:24]} Bg6 {[%emt 0:00:09]} 8. Qb3 {[%emt 0:01:44]} Qc7 {[%emt 0:00:15]} 9. Nxg6 {[%emt 0:00:42] D12: Slav Defence: 3 Nf3 Nf6 4 e3 Bf5.} hxg6 {[%emt 0:00:10]} 10. Bd2 {[%emt 0:00:15] The main line 10.Bd2 scores better than 10.g3.} Be7 {[%emt 0:01:33]} 11. O-O-O {[%emt 0:02:05] The position is equal.} dxc4 {[%emt 0:01:10]} 12. Bxc4 {[%emt 0:00:50]} b5 {[%emt 0:00:15]} 13. Bd3 {[%emt 0:02:23] [#]} a5 $146 {[%emt 0:00:14]} ({Predecessor:} 13... a6 14. a4 Nbd7 15. Kb1 O-O 16. Rc1 c5 17. axb5 axb5 18. Nxb5 Qb7 19. Kc2 Rab8 {0-1 (31) Yakubboev,N (2591)-Harikrishna,P (2719) Chess.com INT 2020}) 14. Qc2 {[%emt 0:15:02][%cal Oc3b5]} Na6 {[%emt 0:07:46] With the idea ...Nb4.} 15. Ne2 {[%emt 0:16:30]} (15. Ne4 $11) 15... O-O $15 {[%emt 0:22:41]} (15... Nb4 16. Bxb4 axb4 17. Bxb5 $1 $14) 16. Kb1 {[%emt 0:03:00]} a4 {[%emt 0:06:00]} (16... Nb4 $17 17. Bxb4 axb4) 17. Rc1 $11 {[%emt 0:02:34]} Rfc8 {[%emt 0:02:23]} 18. e4 {[%emt 0:03:57]} (18. h4 $1 $11) 18... a3 {[%emt 0:02:25]} (18... Nb4 19. Bxb4 Bxb4 20. Bxb5 $1 $14) ({Black should play} 18... Qd7 $17) 19. b3 $15 {[%emt 0:01:10]} Qb7 {[%emt 0:08:17]} ({Don't play} 19... Nb4 20. Bxb4 Bxb4 21. Bxb5 $1 $11) 20. Be3 {[%emt 0:03:16]} c5 $36 {[%emt 0:04:13][%mdl 2048] Black has the initiative.} 21. dxc5 {[%emt 0:02:16]} Nxc5 {[%emt 0:11:11]} (21... Bxc5 $15 {feels stronger.} 22. Qd2 Bb4) 22. Bxc5 {[%emt 0:03:41]} (22. Nd4 $11) 22... Bxc5 $17 {[%emt 0:01:15]} ({And not} 22... Rxc5 23. Qd2 $17) 23. Qd2 {[%emt 0:03:13] Inhibits Be3.} Qb6 {[%emt 0:02:55] &Nero is more active.} 24. Rhd1 {[%emt 0:12:12]} Rc7 {[%emt 0:06:48]} 25. Qe1 {[%emt 0:04:15]} Rac8 {[%emt 0:03:18]} 26. Rc2 {[%emt 0:04:01]} Nd7 {[%emt 0:05:40]} 27. f4 {[%emt 0:05:44]} Nb8 {[%emt 0:00:21]} (27... Nf6 $142 {aiming for ...Ng4.} 28. Qg3 Rd8) 28. Nc3 {[%emt 0:02:32]} (28. f5 $17 {was worth a try.}) 28... Bf8 {[%emt 0:07:09]} 29. Rdc1 {[%emt 0:04:07]} (29. f5 $17 {is a better defense.}) 29... Qd4 $2 {[%emt 0:02:40]} ({Black should try} 29... Na6 $1 $19 {[%cal Ra6b4] And now ...Nb4 would win.} 30. Bxb5 Nb4) 30. Nxb5 {[%emt 0:01:05]} Qxd3 {[%emt 0:00:34]} 31. Nxc7 {[%emt 0:00:04]} Rxc7 {[%emt 0:00:07]} 32. Qe2 {[%emt 0:01:23]} Qxe2 {[%emt 0:01:46] Really sharp!} 33. Rxe2 {[%emt 0:00:03]} Rxc1+ {[%emt 0:00:45]} 34. Kxc1 {[%emt 0:00:04]} Nc6 {[%emt 0:00:17]} 35. Kd2 {[%emt 0:01:32]} Nb4 {[%emt 0:01:30]} 36. Kc3 {[%emt 0:01:19]} f5 {[%emt 0:00:15]} 37. Kd4 {[%emt 0:00:16]} Kf7 {[%emt 0:00:27]} 38. h4 {[%emt 0:02:03]} (38. exf5 $11 {keeps the balance.} gxf5 39. g3) 38... Be7 {[%emt 0:00:23]} (38... fxe4 $1 $17 {Strongly threatening ...Be7.} 39. g4 Be7) 39. g3 $2 {[%emt 0:00:05][%mdl 8192] [#] Now White is beyond hope.} ({White must play} 39. exf5 $15 gxf5 40. g3) 39... fxe4 $1 $19 {[%emt 0:00:43]} 40. Kxe4 {[%emt 0:00:00] [#]} (40. Rd2 $142 Bf6+ 41. Kc4) 40... Bf6 $1 {[%emt 0:00:00] Hoping for ...Bb2.} 41. Rd2 {[%emt 0:01:33]} Bb2 {[%emt 0:00:47]} 42. Rd7+ {[%emt 0:00:10]} Kf8 {[%emt 0:00:53]} 43. Ra7 {[%emt 0:00:02]} Nxa2 {[%emt 0:00:19]} 44. Kd3 {[%emt 0:00:20]} Nb4+ {[%emt 0:03:08]} 45. Kc4 {[%emt 0:00:22] [#]} a2 $1 {[%emt 0:03:10]} 46. Kxb4 {[%emt 0:00:09]} (46. Ra8+ Ke7) 46... a1=Q {[%emt 0:00:04]} 47. Rxa1 {[%emt 0:00:05]} Bxa1 {[%emt 0:00:06]} 48. Kc5 {[%emt 0:00:13]} e5 {[%emt 0:01:04] ( -> ...exf4)} 49. b4 {[%emt 0:08:15]} exf4 {[%emt 0:00:43] Black mates.} 50. gxf4 {[%emt 0:00:11]} Bf6 {[%emt 0:00:18]} 51. b5 {[%emt 0:00:26]} Bxh4 {[%emt 0:00:21]} 52. Kd4 {[%emt 0:01:10] Weighted Error Value: White=0.99/Black=0.23 (precise)} 0-1

[Event "Reykjavik Open 2022"]
[Site "Reykjavik"]
[Date "2022.04.09"]
[Round "5.27"]
[White "Marie, Maxime"]
[Black "Brunello, Marina"]
[Result "0-1"]
[ECO "A20"]
[WhiteElo "2175"]
[BlackElo "2352"]
[Annotator "TA"]
[PlyCount "76"]
[EventDate "2022.04.06"]
[EventCountry "ISL"]
[SourceTitle "playchess.com"]
[Source "ChessBase"]
[SourceQuality "1"]
[TimeControl "40/5400+30:1800+30"]

{[%evp 9,76,15,22,7,12,11,14,8,16,-7,0,0,-4,0,0,0,11,-11,-12,-10,0,0,13,25,34,7,16,-52,-36,-65,-19,-77,-70,-69,-83,-61,-28,-82,-60,-69,-44,-37,-38,-66,-42,-68,-64,-70,-37,-32,0,-192,-191,-204,-198,-167,-160,-153,-159,-159,-165,-9994,-7466,-6083,-7084,-6098,-6083,-2321,-2229]} 1. c4 {[%emt 0:02:19]} e5 {[%emt 0:00:39]} 2. g3 {[%emt 0:00:38]} Nf6 {[%emt 0:00:05]} 3. Bg2 {[%emt 0:00:05]} c6 {[%emt 0:00:03]} 4. Nf3 {[%emt 0:05:39]} e4 {[%emt 0:00:06]} 5. Nd4 {[%emt 0:00:20]} Qb6 {[%emt 0:00:04]} 6. e3 {[%emt 0:04:45] A20: English Opening: 1...e5.} d5 {[%emt 0:00:26]} 7. cxd5 {[%emt 0:02:53]} cxd5 {[%emt 0:00:05]} 8. d3 {[%emt 0:03:19] The position is equal.} Nc6 {[%emt 0:21:02]} 9. Nxc6 {[%emt 0:07:43]} bxc6 {[%emt 0:00:06]} 10. dxe4 $1 {[%emt 0:01:45]} Nxe4 {[%emt 0:02:30]} 11. O-O {[%emt 0:10:01]} Ba6 {[%emt 0:19:46]} 12. Re1 {[%emt 0:02:48]} Bb4 {[%emt 0:00:15]} 13. Nd2 {[%emt 0:00:52] [#]} (13. Bd2 $5) 13... O-O $146 {[%emt 0:01:36]} ({Predecessor:} 13... Nc5 14. Qg4 O-O 15. a3 Nd3 16. Rd1 f5 17. Qd4 Bc5 {0-1 (17) Videnova,I (1994)-Janev,E (2420) Sunny Beach 2004}) 14. Qc2 {[%emt 0:04:35]} f5 {[%emt 0:03:23][%cal Oe4f2]} 15. a3 {[%emt 0:02:43]} Bxd2 {[%emt 0:16:34]} 16. Bxd2 {[%emt 0:00:56]} c5 {[%emt 0:00:03]} 17. Rad1 {[%emt 0:04:08]} Rac8 {[%emt 0:01:33]} 18. b3 {[%emt 0:01:54]} ({Better is} 18. f3 $11 Nxd2 19. Rxd2) 18... d4 $15 {[%emt 0:07:10][%cal Bd5d4,Bd4d3][%mdl 32]} 19. Bc1 {[%emt 0:19:15]} Rfd8 {[%emt 0:03:19] &Nero is much more active.} (19... d3 $15 20. Rxd3 Bxd3 21. Qxd3 Kh8) 20. Bxe4 {[%emt 0:03:38]} (20. Bf1 $11 {keeps the balance.}) 20... fxe4 $17 {[%emt 0:00:08]} 21. Qxe4 {[%emt 0:00:28]} d3 {[%emt 0:03:07] Hoping for ...c4.} 22. Bd2 {[%emt 0:00:56]} Bb7 {[%emt 0:03:22]} 23. Qg4 {[%emt 0:00:47]} (23. Qf5 $11) 23... Qxb3 {[%emt 0:02:01]} 24. e4 {[%emt 0:03:25]} Ba8 {[%emt 0:03:20]} 25. Rc1 {[%emt 0:02:04]} Qf7 {[%emt 0:00:28]} 26. Re3 {[%emt 0:11:55][%cal Oe3d3]} h5 {[%emt 0:01:53]} 27. Qg5 {[%emt 0:00:37]} c4 {[%emt 0:00:12]} 28. Bc3 {[%emt 0:00:25][%cal Oe3f3]} Re8 {[%emt 0:02:36][%cal Bd8e8,Be8e4,Be4g4][%mdl 32]} 29. Rf3 {[%emt 0:00:46]} Qd7 {[%emt 0:00:12]} 30. Rf6 $2 {[%emt 0:01:25]} (30. Rf4 $1 $11) 30... Rxe4 $19 {[%emt 0:01:38]} (30... Bxe4 31. f3 Bb7 32. Rd6 $17 (32. Rg6 $2 Re7 $19)) 31. Rd6 {[%emt 0:00:26]} Qb7 {[%emt 0:00:21][%cal Oe4e1] ( -> ...Re1+!)} 32. f3 {[%emt 0:01:00] [#]} Rg4 $40 {[%emt 0:03:28][%mdl 640] Black has strong attack.} 33. Rd8+ {[%emt 0:01:21]} Rxd8 {[%emt 0:00:14] Dancing on a razor blade.} 34. Qxd8+ {[%emt 0:00:02]} Kh7 {[%emt 0:00:05]} 35. Qe8 $2 {[%emt 0:00:40] [#]} (35. Rf1) 35... Rxg3+ $3 {[%emt 0:01:20][%mdl 512] Black is clearly winning.} 36. hxg3 {[%emt 0:00:21]} Qxf3 {[%emt 0:00:05][%csl Ga8][%cal Rf3g2]} 37. Qxa8 {[%emt 0:01:21]} Qxa8 {[%emt 0:00:04]} 38. Rf1 {[%emt 0:00:06]} Qd5 {[%emt 0:00:13] Weighted Error Value: White=0.44/Black=0.09 (flawless)} 0-1

[Event "Reykjavik Open 2022"]
[Site "Reykjavik"]
[Date "2022.04.09"]
[Round "5.28"]
[White "Johannsson, Birkir Isak"]
[Black "Cummings, David H."]
[Result "0-1"]
[ECO "D45"]
[WhiteElo "2103"]
[BlackElo "2327"]
[Annotator "NA RC"]
[PlyCount "52"]
[EventDate "2022.04.06"]
[EventCountry "ISL"]
[SourceTitle "playchess.com"]
[Source "ChessBase"]
[SourceQuality "1"]
[TimeControl "40/5400+30:1800+30"]

1. d4 {[%emt 0:00:07]} Nf6 {[%emt 0:00:12]} 2. Nf3 {[%emt 0:00:12]} d5 {[%emt 0:00:22]} 3. c4 {[%emt 0:00:08]} e6 {[%emt 0:00:17]} 4. Nc3 {[%emt 0:00:06]} c6 {[%emt 0:00:18]} 5. e3 {[%emt 0:01:18]} Nbd7 {[%emt 0:00:11]} 6. Be2 {[%emt 0:00:11]} Bd6 {[%emt 0:01:00]} 7. O-O {[%emt 0:00:50]} O-O {[%emt 0:00:07]} 8. b3 {[%emt 0:00:48]} b6 {[%emt 0:01:53]} 9. Bb2 {[%emt 0:00:18]} Bb7 {[%emt 0:00:06]} 10. Qc2 {[%emt 0:01:22]} Qe7 {[%emt 0:04:11]} 11. Rfd1 {[%emt 0:04:04]} Rfd8 {[%emt 0:01:56]} 12. Rac1 {[%emt 0:00:00]} Rac8 {[%emt 0:00:17]} 13. Qb1 {[%emt 0:03:28]} c5 {[%emt 0:02:08]} 14. cxd5 {[%emt 0:01:28]} exd5 {[%emt 0:00:30]} 15. g3 {[%emt 0:08:43]} a6 {[%emt 0:02:52]} 16. dxc5 {[%emt 0:18:55]} bxc5 {[%emt 0:00:50]} 17. Re1 {[%emt 0:00:20]} Qf8 {[%emt 0:20:18]} 18. Qa1 {[%emt 0:01:45]} Re8 {[%emt 0:02:41]} 19. Nd2 {[%emt 0:16:04]} Ne5 {[%emt 0:06:51]} 20. Nd1 {[%emt 0:04:50]} Qe7 {[%emt 0:08:17]} 21. Nf3 {[%emt 0:02:28]} d4 {[%emt 0:11:37]} 22. Nxe5 {[%emt 0:05:30]} Qxe5 {[%emt 0:00:54]} 23. f3 {[%emt 0:03:13]} Qg5 {[%emt 0:03:34]} 24. Rc2 {[%emt 0:03:07]} Bxg3 {[%emt 0:02:49]} 25. hxg3 {[%emt 0:00:12]} Qxg3+ {[%emt 0:00:04]} 26. Kf1 {[%emt 0:00:25]} Ng4 {[%emt 0:02:32]} 0-1

[Event "Reykjavik Open 2022"]
[Site "Reykjavik"]
[Date "2022.04.09"]
[Round "5.29"]
[White "Heimisson, Hilmir Freyr"]
[Black "Zysko, Jan"]
[Result "1-0"]
[ECO "E64"]
[WhiteElo "2312"]
[BlackElo "2108"]
[Annotator "TA"]
[PlyCount "75"]
[EventDate "2022.04.06"]
[EventCountry "ISL"]
[SourceTitle "playchess.com"]
[Source "ChessBase"]
[SourceQuality "1"]
[TimeControl "40/5400+30:1800+30"]

{[%evp 13,75,31,16,10,25,0,0,-35,-34,-29,-26,-19,-35,-25,-36,-37,-37,-60,-24,-208,-158,-111,-121,-185,-178,-169,-117,-110,-117,-128,-104,-145,-143,-150,-158,-179,-66,-98,-59,-114,-91,-135,-113,-131,-34,-100,-61,-165,-147,-238,-237,-270,-278,-275,-160,-161,-79,-558,-441,-534,-503,-443,645,555]} 1. c4 {[%emt 0:00:11]} Nf6 {[%emt 0:00:14]} 2. Nc3 {[%emt 0:00:27]} g6 {[%emt 0:00:05]} 3. Nf3 {[%emt 0:03:04][%cal Bg1f3,Bf3e5,Be5d3,Bd3c5][%mdl 32]} Bg7 {[%emt 0:00:07]} 4. g3 {[%emt 0:00:09]} O-O {[%emt 0:00:04]} 5. Bg2 {[%emt 0:00:08]} d6 {[%emt 0:00:05]} 6. d4 {[%emt 0:00:09]} c5 {[%emt 0:01:35]} 7. dxc5 {[%emt 0:06:14]} dxc5 {[%emt 0:00:02]} 8. Ne5 {[%emt 0:00:05] [#] E64: King's Indian: Fianchetto: 6...c5 7 d5.} Nbd7 $146 {[%emt 0:14:13]} ({Predecessor:} 8... Qxd1+ 9. Nxd1 Nfd7 10. Nxd7 Nxd7 11. Be3 Rb8 12. Rc1 b6 13. Nc3 Bb7 14. O-O Bxg2 15. Kxg2 Ne5 16. b3 Rbd8 17. Rfd1 Nc6 18. Bd2 Rd7 19. Be1 Rfd8 20. Rxd7 Rxd7 21. Rd1 Rxd1 22. Nxd1 e6 {½-½ (22) Danielsson,R (2098)-Cao,J (1990) Opatija 2013}) 9. Nd3 {[%emt 0:01:17]} Nb6 {[%emt 0:02:14]} 10. Qb3 {[%emt 0:20:04] The position is equal.} Be6 $1 {[%emt 0:06:58]} 11. Nxc5 {[%emt 0:06:24]} Bxc4 {[%emt 0:02:53]} 12. Qa3 {[%emt 0:00:17]} Nbd5 {[%emt 0:08:32]} 13. Bd2 {[%emt 0:10:30]} b5 {[%emt 0:15:25][%cal Bb7b5,Bb5b4][%mdl 32] White must now prevent ...b4.} 14. Nxd5 {[%emt 0:03:31]} Nxd5 {[%emt 0:16:01]} 15. Rd1 {[%emt 0:01:09]} a5 {[%emt 0:04:07] Hoping for ...b4.} 16. Bc1 $2 {[%emt 0:17:01]} (16. b3 $1 $11 {and White has nothing to worry.} Nc3 17. bxc4 Nxd1 18. cxb5 (18. Kxd1 bxc4 19. Ke1 Rc8 $15)) 16... b4 {[%emt 0:07:56]} 17. Qa4 {[%emt 0:01:47] Threatens to win with Qc2.} Qd6 {[%emt 0:03:39]} 18. Qc2 {[%emt 0:11:01]} Qxc5 $19 {[%emt 0:02:13]} 19. Bxd5 {[%emt 0:01:06] [#]} Bc3+ $1 {[%emt 0:07:37][%mdl 512]} 20. bxc3 $17 {[%emt 0:04:25]} Bxd5 {[%emt 0:00:03]} 21. O-O {[%emt 0:00:43]} Bb7 {[%emt 0:01:16]} 22. Bh6 {[%emt 0:02:57]} Rfc8 {[%emt 0:00:25]} ({Much less strong is} 22... bxc3 23. Bxf8 Rxf8 24. Rd3 $18 (24. e4 Rc8 $16)) ({Don't play} 22... Qxc3 23. Qxc3 bxc3 24. Bxf8 Kxf8 25. Rd3 $16) 23. c4 {[%emt 0:01:00]} Qc6 $40 {[%emt 0:03:52][%csl Gb7][%cal Rc6h1][%mdl 128] White is in trouble.} 24. f3 {[%emt 0:00:36]} Qe6 {[%emt 0:00:02]} ({Better is} 24... g5 $1 $19 25. Qe4 Qb6+ 26. c5 Qxc5+ 27. Qd4 Bd5 28. Qxc5 Rxc5) 25. c5 {[%emt 0:04:15]} f6 {[%emt 0:01:39]} 26. e4 {[%emt 0:02:07] Inhibits Bd5.} (26. Rd2 $15) 26... g5 {[%emt 0:01:14][%cal Bg6g5,Bg5h4][%mdl 32]} 27. h4 {[%emt 0:00:03] [#]} gxh4 {[%emt 0:00:55]} 28. g4 {[%emt 0:00:01]} Qe5 {[%emt 0:00:14]} (28... Ba6 $17 29. Rf2 Bc4) 29. Be3 {[%emt 0:00:20]} (29. Qb3+ $15 e6 30. Qe3) 29... Bc6 {[%emt 0:00:44]} 30. Rd2 {[%emt 0:02:20] [#]} (30. Qf2 $15) 30... Rd8 $1 $19 {[%emt 0:00:23]} 31. Rh2 {[%emt 0:00:01]} (31. Qc4+ $17 Kg7 32. Rh2) 31... Bb5 {[%emt 0:00:24]} 32. Rc1 {[%emt 0:01:19]} Rd3 {[%emt 0:00:13]} 33. Qf2 {[%emt 0:01:05]} Rad8 {[%emt 0:00:54]} (33... Qg3+ $19 34. Rg2 Qxf2+ 35. Bxf2 h3) 34. Re1 {[%emt 0:00:53]} Rd1 {[%emt 0:00:39]} (34... Qg3+ $19 35. Qxg3 hxg3) 35. Rxh4 $2 {[%emt 0:00:43][%mdl 8192]} (35. Qxh4 $17 Rxe1+ 36. Qxe1) 35... Qa1 {[%emt 0:00:11]} 36. Rxd1 {[%emt 0:00:27]} Rxd1+ {[%emt 0:00:02]} 37. Kg2 {[%emt 0:00:33][%cal Oc5c6]} Rb1 $4 {[%emt 0:01:16][%mdl 8192]} (37... Re1 $19 38. Kg3 Re2) 38. Bd4 {[%emt 0:00:13] Quite a comeback for White.  Weighted Error Value: White=0.55/Black=0.39} 1-0